[Event "Titled Tuesday Blitz April 05 Early 2022"]
[White "Sanchez Alvares, Kelvin Antonio"]
[Black "Marcziter, Dmitrii"]
[WhiteFideId "3906680"]
[BlackFideId "13900765"]
[WhiteElo "2193"]
[BlackElo "2155"]
[Result "0-1"]
[Round "09"]
[TimeControl "180+1"]
[Date "2022.04.05"]
[WhiteClock "0:00:58"]
[BlackClock "0:00:58"]

1. e4 {[%clk 0:02:57]}  c5 {[%clk 0:02:52]} 2. Nf3 {[%clk 0:02:51]}  a6 {[%clk 0:02:52]} 3. c4 {[%clk 0:02:51]}  e6 {[%clk 0:02:52]} 4. d4 {[%clk 0:02:49]}  cxd4 {[%clk 0:02:52]} 5. Nxd4 {[%clk 0:02:49]}  Nf6 {[%clk 0:02:52]} 6. Nc3 {[%clk 0:02:47]}  Qc7 {[%clk 0:02:53]} 7. f3 {[%clk 0:02:47]}  b6 {[%clk 0:02:53]} 8. Be3 {[%clk 0:02:46]}  Bb7 {[%clk 0:02:54]} 9. Be2 {[%clk 0:02:46]}  Nc6 {[%clk 0:02:54]} 10. O-O {[%clk 0:02:46]}  Ne5 {[%clk 0:02:54]} 11. Qd2 {[%clk 0:02:37]}  Ng6 {[%clk 0:02:47]} 12. Kh1 {[%clk 0:02:34]}  h5 {[%clk 0:02:45]} 13. Rfd1 {[%clk 0:02:23]}  h4 {[%clk 0:02:44]} 14. Rac1 {[%clk 0:02:21]}  Rc8 {[%clk 0:02:42]} 15. Nb3 {[%clk 0:02:18]}  Bc5 {[%clk 0:02:25]} 16. Na4 {[%clk 0:02:08]}  Bxe3 {[%clk 0:02:22]} 17. Qxe3 {[%clk 0:02:07]}  Nf4 {[%clk 0:02:13]} 18. Bf1 {[%clk 0:02:03]}  N6h5 {[%clk 0:02:09]} 19. Qxb6 {[%clk 0:01:50]}  Ng3+ {[%clk 0:02:03]} 20. hxg3 {[%clk 0:01:46]}  hxg3+ {[%clk 0:02:03]} 21. Kg1 {[%clk 0:01:46]}  Qe5 {[%clk 0:02:01]} 22. Bd3 {[%clk 0:01:25]}  Rh2 {[%clk 0:01:02]} 23. Rc2 {[%clk 0:00:58]}  Qh5 {[%clk 0:00:58]} 0-1


[Site "https://www.chess.com"]

[Event "Titled Tuesday Blitz April 05 Early 2022"]
[White "Sebag, Marie"]
[Black "Hernandez Bermudez, Ulises Eduardo"]
[WhiteFideId "617822"]
[BlackFideId "3902510"]
[WhiteElo "2440"]
[BlackElo "2056"]
[Result "0-1"]
[Round "09"]
[TimeControl "180+1"]
[Date "2022.04.05"]
[WhiteClock "0:00:02"]
[BlackClock "0:00:13"]

1. d4 {[%clk 0:03:00]}  Nf6 {[%clk 0:02:59]} 2. Nf3 {[%clk 0:02:59]}  g6 {[%clk 0:02:59]} 3. Bf4 {[%clk 0:02:57]}  Bg7 {[%clk 0:02:58]} 4. e3 {[%clk 0:02:57]}  d6 {[%clk 0:02:58]} 5. h3 {[%clk 0:02:57]}  O-O {[%clk 0:02:58]} 6. Be2 {[%clk 0:02:58]}  c5 {[%clk 0:02:57]} 7. Bh2 {[%clk 0:02:57]}  cxd4 {[%clk 0:02:57]} 8. exd4 {[%clk 0:02:57]}  Nc6 {[%clk 0:02:54]} 9. O-O {[%clk 0:02:56]}  Re8 {[%clk 0:02:52]} 10. c4 {[%clk 0:02:54]}  Bf5 {[%clk 0:02:48]} 11. d5 {[%clk 0:02:48]}  Nb8 {[%clk 0:02:38]} 12. Nd4 {[%clk 0:02:43]}  Bxb1 {[%clk 0:02:35]} 13. Rxb1 {[%clk 0:02:42]}  Nbd7 {[%clk 0:02:29]} 14. b4 {[%clk 0:02:41]}  Ne4 {[%clk 0:02:29]} 15. Qd3 {[%clk 0:02:30]}  f5 {[%clk 0:02:18]} 16. Ne6 {[%clk 0:02:28]}  Qb6 {[%clk 0:02:16]} 17. Nxg7 {[%clk 0:02:20]}  Kxg7 {[%clk 0:02:17]} 18. Bf3 {[%clk 0:02:18]}  Ndf6 {[%clk 0:02:13]} 19. Rfc1 {[%clk 0:02:16]}  Rac8 {[%clk 0:02:06]} 20. c5 {[%clk 0:02:08]}  Qd8 {[%clk 0:01:57]} 21. c6 {[%clk 0:02:04]}  bxc6 {[%clk 0:01:56]} 22. dxc6 {[%clk 0:02:02]}  Qb6 {[%clk 0:01:56]} 23. Qe3 {[%clk 0:01:53]}  Rxc6 {[%clk 0:01:49]} 24. Rxc6 {[%clk 0:01:47]}  Qxc6 {[%clk 0:01:50]} 25. Qxa7 {[%clk 0:01:47]}  Qc2 {[%clk 0:01:45]} 26. Re1 {[%clk 0:01:42]}  Nd5 {[%clk 0:01:05]} 27. Bxe4 {[%clk 0:01:25]}  fxe4 {[%clk 0:01:04]} 28. Qd4+ {[%clk 0:01:25]}  Nf6 {[%clk 0:01:03]} 29. Bg3 {[%clk 0:01:22]}  Qxa2 {[%clk 0:00:58]} 30. Bh4 {[%clk 0:01:19]}  Qe6 {[%clk 0:00:49]} 31. b5 {[%clk 0:01:15]}  Qe5 {[%clk 0:00:37]} 32. Qxe5 {[%clk 0:01:06]}  dxe5 {[%clk 0:00:38]} 33. Bg3 {[%clk 0:01:04]}  Rb8 {[%clk 0:00:36]} 34. Rb1 {[%clk 0:01:02]}  Nd7 {[%clk 0:00:36]} 35. Rd1 {[%clk 0:01:01]}  Nf6 {[%clk 0:00:32]} 36. Rb1 {[%clk 0:00:53]}  Nd7 {[%clk 0:00:31]} 37. Kf1 {[%clk 0:00:53]}  Kf7 {[%clk 0:00:30]} 38. Ke2 {[%clk 0:00:53]}  Ke6 {[%clk 0:00:30]} 39. Ke3 {[%clk 0:00:50]}  Nf6 {[%clk 0:00:28]} 40. Rb3 {[%clk 0:00:33]}  Kf5 {[%clk 0:00:21]} 41. Ke2 {[%clk 0:00:25]}  Nd5 {[%clk 0:00:20]} 42. h4 {[%clk 0:00:17]}  Rxb5 {[%clk 0:00:20]} 43. Rxb5 {[%clk 0:00:15]}  Nc3+ {[%clk 0:00:20]} 44. Ke3 {[%clk 0:00:15]}  Nxb5 {[%clk 0:00:21]} 45. Bh2 {[%clk 0:00:15]}  Nd6 {[%clk 0:00:18]} 46. Bg3 {[%clk 0:00:14]}  Ke6 {[%clk 0:00:17]} 47. Bh2 {[%clk 0:00:10]}  Kd5 {[%clk 0:00:17]} 48. g4 {[%clk 0:00:10]}  Nc4+ {[%clk 0:00:16]} 49. Ke2 {[%clk 0:00:09]}  Kd4 {[%clk 0:00:16]} 50. Bg3 {[%clk 0:00:10]}  Nb2 {[%clk 0:00:15]} 51. h5 {[%clk 0:00:07]}  Nd3 {[%clk 0:00:14]} 52. hxg6 {[%clk 0:00:06]}  hxg6 {[%clk 0:00:15]} 53. Bh4 {[%clk 0:00:06]}  Nf4+ {[%clk 0:00:15]} 54. Kf1 {[%clk 0:00:06]}  e6 {[%clk 0:00:15]} 55. Bd8 {[%clk 0:00:06]}  Nd5 {[%clk 0:00:13]} 56. Ba5 {[%clk 0:00:04]}  e3 {[%clk 0:00:13]} 57. fxe3+ {[%clk 0:00:04]}  Nxe3+ {[%clk 0:00:13]} 58. Kf2 {[%clk 0:00:04]}  Nxg4+ {[%clk 0:00:14]} 59. Kf3 {[%clk 0:00:04]}  Nf6 {[%clk 0:00:14]} 60. Bd8 {[%clk 0:00:03]}  Nd5 {[%clk 0:00:14]} 61. Bg5 {[%clk 0:00:02]}  e4+ {[%clk 0:00:14]} 62. Ke2 {[%clk 0:00:02]}  Nc3+ {[%clk 0:00:13]} 0-1


[Site "https://www.chess.com"]

[Event "Titled Tuesday Blitz April 05 Early 2022"]
[White "Sergienko, Sergey"]
[Black "Prado Lobo, Jonas"]
[WhiteFideId "4115791"]
[BlackFideId "32050666"]
[WhiteElo "2193"]
[BlackElo "2214"]
[Result "0-1"]
[Round "09"]
[TimeControl "180+1"]
[Date "2022.04.05"]
[WhiteClock "0:01:47"]
[BlackClock "0:02:10"]

1. e4 {[%clk 0:02:58]}  e5 {[%clk 0:02:56]} 2. Nf3 {[%clk 0:02:57]}  Nf6 {[%clk 0:02:56]} 3. Nxe5 {[%clk 0:02:55]}  d5 {[%clk 0:02:57]} 4. d4 {[%clk 0:02:49]}  Nxe4 {[%clk 0:02:49]} 5. Nd2 {[%clk 0:02:47]}  Bd6 {[%clk 0:02:44]} 6. Nxe4 {[%clk 0:02:43]}  dxe4 {[%clk 0:02:44]} 7. Qe2 {[%clk 0:02:21]}  O-O {[%clk 0:02:38]} 8. Bf4 {[%clk 0:02:17]}  f6 {[%clk 0:02:22]} 9. Qc4+ {[%clk 0:02:17]}  Kh8 {[%clk 0:02:22]} 10. O-O-O {[%clk 0:02:06]}  fxe5 {[%clk 0:02:19]} 11. dxe5 {[%clk 0:02:06]}  Rxf4 {[%clk 0:02:15]} 12. exd6 {[%clk 0:02:05]}  cxd6 {[%clk 0:02:12]} 13. Rxd6 {[%clk 0:01:48]}  Qxd6 {[%clk 0:02:10]} 14. Qxc8+ {[%clk 0:01:48]}  Rf8 {[%clk 0:02:10]} 15. Qxb7 {[%clk 0:01:47]} 0-1


[Site "https://www.chess.com"]

[Event "Titled Tuesday Blitz April 05 Early 2022"]
[White "Silvestre, Christian"]
[Black "Zaksaite, Salomeja"]
[WhiteFideId "30956269"]
[BlackFideId "12801496"]
[WhiteElo "2396"]
[BlackElo "1953"]
[Result "1-0"]
[Round "09"]
[TimeControl "180+1"]
[Date "2022.04.05"]
[WhiteClock "0:00:49"]
[BlackClock "0:00:17"]

1. Nf3 {[%clk 0:03:00]}  c5 {[%clk 0:02:52]} 2. b3 {[%clk 0:02:59]}  Nc6 {[%clk 0:02:47]} 3. Bb2 {[%clk 0:02:58]}  Nf6 {[%clk 0:02:47]} 4. e3 {[%clk 0:02:57]}  d6 {[%clk 0:02:45]} 5. Be2 {[%clk 0:02:55]}  e5 {[%clk 0:02:38]} 6. d3 {[%clk 0:02:55]}  Be7 {[%clk 0:02:33]} 7. c4 {[%clk 0:02:53]}  O-O {[%clk 0:02:31]} 8. Nbd2 {[%clk 0:02:52]}  Be6 {[%clk 0:02:31]} 9. Ng5 {[%clk 0:02:46]}  Bf5 {[%clk 0:02:30]} 10. Nge4 {[%clk 0:02:45]}  Bg6 {[%clk 0:02:28]} 11. O-O {[%clk 0:02:38]}  Qd7 {[%clk 0:02:24]} 12. Rc1 {[%clk 0:02:36]}  b6 {[%clk 0:02:24]} 13. a3 {[%clk 0:02:35]}  a5 {[%clk 0:02:21]} 14. Bf3 {[%clk 0:02:28]}  Ne8 {[%clk 0:02:20]} 15. Qc2 {[%clk 0:02:19]}  Nc7 {[%clk 0:02:20]} 16. Nc3 {[%clk 0:02:18]}  f5 {[%clk 0:02:19]} 17. Nb5 {[%clk 0:02:13]}  Rab8 {[%clk 0:02:08]} 18. Bc3 {[%clk 0:02:05]}  Nxb5 {[%clk 0:02:05]} 19. cxb5 {[%clk 0:02:05]}  Nd8 {[%clk 0:02:04]} 20. Bd5+ {[%clk 0:02:02]}  Kh8 {[%clk 0:02:03]} 21. a4 {[%clk 0:02:01]}  Ne6 {[%clk 0:02:03]} 22. Nc4 {[%clk 0:01:59]}  Nc7 {[%clk 0:02:02]} 23. Bf3 {[%clk 0:01:51]}  Qe6 {[%clk 0:01:56]} 24. e4 {[%clk 0:01:47]}  Bf6 {[%clk 0:01:55]} 25. Rfe1 {[%clk 0:01:40]}  f4 {[%clk 0:01:54]} 26. Qe2 {[%clk 0:01:34]}  Qe7 {[%clk 0:01:48]} 27. Bg4 {[%clk 0:01:31]}  Bf7 {[%clk 0:01:43]} 28. g3 {[%clk 0:01:25]}  g5 {[%clk 0:01:40]} 29. Kh1 {[%clk 0:01:22]}  d5 {[%clk 0:01:33]} 30. exd5 {[%clk 0:01:16]}  Bxd5+ {[%clk 0:01:32]} 31. Bf3 {[%clk 0:01:15]}  Bxf3+ {[%clk 0:01:27]} 32. Qxf3 {[%clk 0:01:16]}  Rbe8 {[%clk 0:00:58]} 33. Nxe5 {[%clk 0:01:13]}  Qg7 {[%clk 0:00:56]} 34. gxf4 {[%clk 0:00:57]}  gxf4 {[%clk 0:00:51]} 35. Rg1 {[%clk 0:00:55]}  Qe7 {[%clk 0:00:29]} 36. Nc6 {[%clk 0:00:51]}  Bxc3 {[%clk 0:00:17]} 37. Nxe7 {[%clk 0:00:49]} 1-0


[Site "https://www.chess.com"]

[Event "Titled Tuesday Blitz April 05 Early 2022"]
[White "Sliwicka, Alicja"]
[Black "Skliarov, Viktor"]
[WhiteFideId "1150677"]
[BlackFideId "14106736"]
[WhiteElo "2120"]
[BlackElo "2229"]
[Result "1-0"]
[Round "09"]
[TimeControl "180+1"]
[Date "2022.04.05"]
[WhiteClock "0:00:22"]
[BlackClock "0:00:03"]

1. e4 {[%clk 0:03:00]}  c5 {[%clk 0:02:59]} 2. Nf3 {[%clk 0:02:59]}  Nc6 {[%clk 0:03:00]} 3. d4 {[%clk 0:02:59]}  cxd4 {[%clk 0:02:59]} 4. Nxd4 {[%clk 0:03:00]}  Nf6 {[%clk 0:03:00]} 5. Nc3 {[%clk 0:03:00]}  e5 {[%clk 0:03:00]} 6. Ndb5 {[%clk 0:03:00]}  d6 {[%clk 0:03:01]} 7. Bg5 {[%clk 0:03:00]}  a6 {[%clk 0:03:01]} 8. Na3 {[%clk 0:03:00]}  b5 {[%clk 0:03:01]} 9. Nd5 {[%clk 0:03:00]}  Be7 {[%clk 0:03:02]} 10. Bxf6 {[%clk 0:03:01]}  Bxf6 {[%clk 0:03:03]} 11. c4 {[%clk 0:03:01]}  b4 {[%clk 0:03:03]} 12. Nc2 {[%clk 0:03:01]}  a5 {[%clk 0:03:03]} 13. g3 {[%clk 0:02:59]}  Bg5 {[%clk 0:03:03]} 14. h4 {[%clk 0:02:57]}  Bh6 {[%clk 0:03:04]} 15. Bh3 {[%clk 0:02:57]}  O-O {[%clk 0:03:03]} 16. Kf1 {[%clk 0:02:57]}  Bxh3+ {[%clk 0:02:39]} 17. Rxh3 {[%clk 0:02:56]}  Nb8 {[%clk 0:02:40]} 18. Kg2 {[%clk 0:02:51]}  Na6 {[%clk 0:02:37]} 19. Qf3 {[%clk 0:02:35]}  Nc5 {[%clk 0:02:18]} 20. Rd1 {[%clk 0:02:33]}  Rb8 {[%clk 0:02:06]} 21. b3 {[%clk 0:02:31]}  Kh8 {[%clk 0:02:00]} 22. g4 {[%clk 0:02:19]}  f6 {[%clk 0:01:58]} 23. Rg3 {[%clk 0:02:14]}  Ne6 {[%clk 0:01:24]} 24. Ne1 {[%clk 0:02:13]}  Bf4 {[%clk 0:01:12]} 25. Rh3 {[%clk 0:02:08]}  Ra8 {[%clk 0:01:06]} 26. Kg1 {[%clk 0:01:56]}  Qb8 {[%clk 0:00:45]} 27. Ng2 {[%clk 0:01:54]}  Bh6 {[%clk 0:00:35]} 28. Nge3 {[%clk 0:01:37]}  Bxe3 {[%clk 0:00:29]} 29. fxe3 {[%clk 0:01:36]}  a4 {[%clk 0:00:29]} 30. Qf5 {[%clk 0:01:33]}  axb3 {[%clk 0:00:26]} 31. axb3 {[%clk 0:01:29]}  Nc5 {[%clk 0:00:20]} 32. Rg3 {[%clk 0:01:16]}  g6 {[%clk 0:00:19]} 33. Qf2 {[%clk 0:01:14]}  Kg7 {[%clk 0:00:17]} 34. Qg2 {[%clk 0:00:56]}  Ra3 {[%clk 0:00:17]} 35. g5 {[%clk 0:00:46]}  fxg5 {[%clk 0:00:16]} 36. Rxg5 {[%clk 0:00:43]}  Rxb3 {[%clk 0:00:15]} 37. h5 {[%clk 0:00:40]}  Rd3 {[%clk 0:00:15]} 38. Rb1 {[%clk 0:00:32]}  b3 {[%clk 0:00:11]} 39. hxg6 {[%clk 0:00:31]}  h6 {[%clk 0:00:11]} 40. Rf5 {[%clk 0:00:30]}  Na4 {[%clk 0:00:04]} 41. Qf1 {[%clk 0:00:25]}  Rd2 {[%clk 0:00:02]} 42. Rf7+ {[%clk 0:00:24]}  Kg8 {[%clk 0:00:03]} 43. Qf6 {[%clk 0:00:22]} 1-0


[Site "https://www.chess.com"]

[Event "Titled Tuesday Blitz April 05 Early 2022"]
[White "Srebrnic, Marko"]
[Black "Omariev, Maksim"]
[WhiteFideId "14603616"]
[BlackFideId "4193423"]
[WhiteElo "2340"]
[BlackElo "2491"]
[Result "0-1"]
[Round "09"]
[TimeControl "180+1"]
[Date "2022.04.05"]
[WhiteClock "0:00:22"]
[BlackClock "0:00:05"]

1. e4 {[%clk 0:03:00]}  c5 {[%clk 0:03:00]} 2. Nf3 {[%clk 0:02:59]}  d6 {[%clk 0:03:00]} 3. d4 {[%clk 0:03:00]}  cxd4 {[%clk 0:03:01]} 4. Nxd4 {[%clk 0:03:01]}  Nf6 {[%clk 0:03:01]} 5. Nc3 {[%clk 0:03:01]}  a6 {[%clk 0:03:02]} 6. Bc4 {[%clk 0:03:01]}  e6 {[%clk 0:03:02]} 7. O-O {[%clk 0:03:02]}  b5 {[%clk 0:02:58]} 8. Bb3 {[%clk 0:03:01]}  Be7 {[%clk 0:02:58]} 9. Qf3 {[%clk 0:03:01]}  Qc7 {[%clk 0:02:54]} 10. Qg3 {[%clk 0:03:00]}  O-O {[%clk 0:02:50]} 11. Bh6 {[%clk 0:03:00]}  Ne8 {[%clk 0:02:47]} 12. h4 {[%clk 0:03:01]}  Bd7 {[%clk 0:02:29]} 13. h5 {[%clk 0:03:00]}  Kh8 {[%clk 0:02:29]} 14. Be3 {[%clk 0:02:54]}  h6 {[%clk 0:02:20]} 15. Rad1 {[%clk 0:02:47]}  Nc6 {[%clk 0:02:18]} 16. Nxc6 {[%clk 0:02:42]}  Bxc6 {[%clk 0:02:18]} 17. f3 {[%clk 0:02:18]}  Nf6 {[%clk 0:02:12]} 18. Qh3 {[%clk 0:02:14]}  a5 {[%clk 0:02:10]} 19. a3 {[%clk 0:02:14]}  b4 {[%clk 0:02:06]} 20. axb4 {[%clk 0:02:14]}  axb4 {[%clk 0:02:07]} 21. Ne2 {[%clk 0:02:14]}  d5 {[%clk 0:02:04]} 22. exd5 {[%clk 0:02:01]}  Nxd5 {[%clk 0:02:05]} 23. Bf2 {[%clk 0:01:58]}  Bf6 {[%clk 0:02:01]} 24. Nd4 {[%clk 0:01:57]}  Bb7 {[%clk 0:01:59]} 25. Rfe1 {[%clk 0:01:57]}  Rfc8 {[%clk 0:01:49]} 26. Kh1 {[%clk 0:01:49]}  Nf4 {[%clk 0:01:47]} 27. Qg4 {[%clk 0:01:49]}  Nd5 {[%clk 0:01:06]} 28. Bg3 {[%clk 0:01:40]}  Qb6 {[%clk 0:01:01]} 29. Be5 {[%clk 0:01:39]}  Ra5 {[%clk 0:00:53]} 30. Bxd5 {[%clk 0:01:33]}  Bxe5 {[%clk 0:00:27]} 31. Bxb7 {[%clk 0:01:28]}  Qxb7 {[%clk 0:00:28]} 32. Nb3 {[%clk 0:01:21]}  Rb5 {[%clk 0:00:25]} 33. Re4 {[%clk 0:01:05]}  Bxb2 {[%clk 0:00:20]} 34. g3 {[%clk 0:00:47]}  f5 {[%clk 0:00:20]} 35. Qg6 {[%clk 0:00:40]}  fxe4 {[%clk 0:00:16]} 36. Rd6 {[%clk 0:00:37]}  Rg5 {[%clk 0:00:13]} 37. Qxe6 {[%clk 0:00:35]}  exf3 {[%clk 0:00:09]} 38. Kh2 {[%clk 0:00:34]}  f2 {[%clk 0:00:08]} 39. Nc5 {[%clk 0:00:23]}  Rgxc5 {[%clk 0:00:05]} 40. Rc6 {[%clk 0:00:18]}  R5xc6 {[%clk 0:00:03]} 41. Qd5 {[%clk 0:00:17]}  Qe7 {[%clk 0:00:02]} 42. Kg2 {[%clk 0:00:16]}  Qe1 {[%clk 0:00:02]} 43. Qd3 {[%clk 0:00:16]}  Qg1+ {[%clk 0:00:03]} 44. Kf3 {[%clk 0:00:16]}  f1=Q+ {[%clk 0:00:04]} 45. Kg4 {[%clk 0:00:17]}  Qxd3 {[%clk 0:00:04]} 46. cxd3 {[%clk 0:00:18]}  Rc5 {[%clk 0:00:04]} 47. d4 {[%clk 0:00:18]}  Rg5+ {[%clk 0:00:03]} 48. Kf4 {[%clk 0:00:19]}  Qf1+ {[%clk 0:00:04]} 49. Ke4 {[%clk 0:00:20]}  Qf5+ {[%clk 0:00:05]} 50. Ke3 {[%clk 0:00:20]}  Bxd4+ {[%clk 0:00:05]} 51. Ke2 {[%clk 0:00:21]}  Rc2+ {[%clk 0:00:04]} 52. Kd1 {[%clk 0:00:21]}  Qd3+ {[%clk 0:00:04]} 53. Ke1 {[%clk 0:00:22]}  Qe2# {[%clk 0:00:05]} 0-1


[Site "https://www.chess.com"]

[Event "Titled Tuesday Blitz April 05 Early 2022"]
[White "Todorovic, Bojan"]
[Black "Gontcharov, Vladislav"]
[WhiteFideId "917087"]
[BlackFideId "4123492"]
[WhiteElo "2266"]
[BlackElo "2488"]
[Result "0-1"]
[Round "09"]
[TimeControl "180+1"]
[Date "2022.04.05"]
[WhiteClock "0:00:06"]
[BlackClock "0:00:17"]

1. d4 {[%clk 0:02:59]}  Nf6 {[%clk 0:02:59]} 2. Bg5 {[%clk 0:02:58]}  Ne4 {[%clk 0:02:58]} 3. Bf4 {[%clk 0:02:58]}  d5 {[%clk 0:02:58]} 4. e3 {[%clk 0:02:57]}  e6 {[%clk 0:02:54]} 5. Bd3 {[%clk 0:02:54]}  Nf6 {[%clk 0:02:43]} 6. Nf3 {[%clk 0:02:52]}  Be7 {[%clk 0:02:42]} 7. Nbd2 {[%clk 0:02:48]}  O-O {[%clk 0:02:41]} 8. h3 {[%clk 0:02:48]}  c5 {[%clk 0:02:40]} 9. c3 {[%clk 0:02:48]}  Nc6 {[%clk 0:02:40]} 10. O-O {[%clk 0:02:43]}  b6 {[%clk 0:02:39]} 11. Ne5 {[%clk 0:02:41]}  Bb7 {[%clk 0:02:39]} 12. Ndf3 {[%clk 0:02:28]}  h6 {[%clk 0:02:33]} 13. Nxc6 {[%clk 0:02:21]}  Bxc6 {[%clk 0:02:32]} 14. Ne5 {[%clk 0:02:21]}  Bb7 {[%clk 0:02:33]} 15. Bc2 {[%clk 0:02:20]}  b5 {[%clk 0:02:16]} 16. dxc5 {[%clk 0:02:03]}  Bxc5 {[%clk 0:02:15]} 17. Qd3 {[%clk 0:02:03]}  a6 {[%clk 0:01:48]} 18. Ng4 {[%clk 0:02:00]}  Re8 {[%clk 0:01:48]} 19. Be5 {[%clk 0:01:54]}  Ne4 {[%clk 0:01:41]} 20. f3 {[%clk 0:01:49]}  f5 {[%clk 0:01:41]} 21. fxe4 {[%clk 0:01:46]}  dxe4 {[%clk 0:01:41]} 22. Qxd8 {[%clk 0:01:45]}  Raxd8 {[%clk 0:01:40]} 23. Nf2 {[%clk 0:01:44]}  Bxe3 {[%clk 0:01:41]} 24. Rad1 {[%clk 0:01:41]}  Bd5 {[%clk 0:01:33]} 25. Bb3 {[%clk 0:01:38]}  g6 {[%clk 0:01:24]} 26. Bd4 {[%clk 0:01:34]}  Bg5 {[%clk 0:01:21]} 27. g3 {[%clk 0:01:21]}  e3 {[%clk 0:01:10]} 28. Bxd5 {[%clk 0:00:53]}  exd5 {[%clk 0:01:07]} 29. Bxe3 {[%clk 0:00:31]}  Rxe3 {[%clk 0:01:01]} 30. Kg2 {[%clk 0:00:31]}  Re2 {[%clk 0:01:00]} 31. h4 {[%clk 0:00:23]}  Bf6 {[%clk 0:00:54]} 32. Rfe1 {[%clk 0:00:21]}  Rxb2 {[%clk 0:00:50]} 33. Re6 {[%clk 0:00:18]}  Kf7 {[%clk 0:00:50]} 34. Rxa6 {[%clk 0:00:17]}  Bxc3 {[%clk 0:00:48]} 35. Kf3 {[%clk 0:00:18]}  d4 {[%clk 0:00:31]} 36. Nd3 {[%clk 0:00:18]}  Re8 {[%clk 0:00:31]} 37. Nxb2 {[%clk 0:00:17]}  Bxb2 {[%clk 0:00:26]} 38. Rd2 {[%clk 0:00:18]}  Bc1 {[%clk 0:00:24]} 39. Re2 {[%clk 0:00:18]}  Be3 {[%clk 0:00:22]} 40. Rc2 {[%clk 0:00:18]}  Re7 {[%clk 0:00:20]} 41. Rd6 {[%clk 0:00:16]}  g5 {[%clk 0:00:17]} 42. h5 {[%clk 0:00:09]}  Ra7 {[%clk 0:00:16]} 43. Rxh6 {[%clk 0:00:06]}  g4+ {[%clk 0:00:16]} 44. Ke2 {[%clk 0:00:06]}  Bxh6 {[%clk 0:00:17]} 0-1


[Site "https://www.chess.com"]

[Event "Titled Tuesday Blitz April 05 Early 2022"]
[White "Voege, Tobias"]
[Black "Samant Aditya S"]
[WhiteFideId "1270513"]
[BlackFideId "35080580"]
[WhiteElo "2297"]
[BlackElo "1916"]
[Result "0-1"]
[Round "09"]
[TimeControl "180+1"]
[Date "2022.04.05"]
[WhiteClock "0:00:05"]
[BlackClock "0:00:04"]

1. c4 {[%clk 0:03:00]}  e5 {[%clk 0:02:59]} 2. g3 {[%clk 0:03:00]}  Nf6 {[%clk 0:02:59]} 3. Bg2 {[%clk 0:03:00]}  d5 {[%clk 0:02:59]} 4. cxd5 {[%clk 0:02:59]}  Nxd5 {[%clk 0:03:00]} 5. Nc3 {[%clk 0:02:58]}  Nb6 {[%clk 0:03:00]} 6. Nf3 {[%clk 0:02:54]}  Nc6 {[%clk 0:03:00]} 7. O-O {[%clk 0:02:54]}  Be7 {[%clk 0:03:01]} 8. d3 {[%clk 0:02:51]}  O-O {[%clk 0:02:59]} 9. a4 {[%clk 0:02:50]}  a5 {[%clk 0:02:54]} 10. Be3 {[%clk 0:02:48]}  Be6 {[%clk 0:02:53]} 11. Bxb6 {[%clk 0:02:42]}  cxb6 {[%clk 0:02:54]} 12. Rc1 {[%clk 0:02:43]}  Rc8 {[%clk 0:02:36]} 13. Nd2 {[%clk 0:02:37]}  f6 {[%clk 0:01:35]} 14. Nc4 {[%clk 0:02:31]}  Bc5 {[%clk 0:01:33]} 15. Nb5 {[%clk 0:02:29]}  Qd7 {[%clk 0:01:19]} 16. Qb3 {[%clk 0:02:24]}  Rfd8 {[%clk 0:01:15]} 17. Rfd1 {[%clk 0:02:21]}  Kh8 {[%clk 0:01:06]} 18. Rd2 {[%clk 0:02:19]}  h5 {[%clk 0:00:31]} 19. h4 {[%clk 0:02:11]}  Kg8 {[%clk 0:00:28]} 20. Qd1 {[%clk 0:02:00]}  Bg4 {[%clk 0:00:21]} 21. Qf1 {[%clk 0:01:50]}  Kh8 {[%clk 0:00:20]} 22. Kh2 {[%clk 0:01:21]}  Be6 {[%clk 0:00:21]} 23. e3 {[%clk 0:01:08]}  Qe7 {[%clk 0:00:17]} 24. Qe2 {[%clk 0:01:04]}  Bf7 {[%clk 0:00:14]} 25. Bh3 {[%clk 0:01:01]}  Rb8 {[%clk 0:00:13]} 26. Bg2 {[%clk 0:00:48]}  g6 {[%clk 0:00:13]} 27. b3 {[%clk 0:00:33]}  Kg7 {[%clk 0:00:13]} 28. Rcd1 {[%clk 0:00:32]}  Rbc8 {[%clk 0:00:14]} 29. d4 {[%clk 0:00:29]}  exd4 {[%clk 0:00:12]} 30. exd4 {[%clk 0:00:30]}  Qxe2 {[%clk 0:00:12]} 31. Rxe2 {[%clk 0:00:30]}  Nxd4 {[%clk 0:00:12]} 32. Nxd4 {[%clk 0:00:30]}  Bxd4 {[%clk 0:00:07]} 33. Re7 {[%clk 0:00:25]}  Bc5 {[%clk 0:00:04]} 34. Rxd8 {[%clk 0:00:23]}  Rxd8 {[%clk 0:00:04]} 35. Rxb7 {[%clk 0:00:23]}  Bxf2 {[%clk 0:00:04]} 36. Nxb6 {[%clk 0:00:20]}  Bxb6 {[%clk 0:00:05]} 37. Rxb6 {[%clk 0:00:21]}  Rd3 {[%clk 0:00:05]} 38. Rb5 {[%clk 0:00:17]}  Rxb3 {[%clk 0:00:05]} 39. Rxa5 {[%clk 0:00:17]}  Rb2 {[%clk 0:00:05]} 40. Ra7 {[%clk 0:00:15]}  Kf8 {[%clk 0:00:04]} 41. Kg1 {[%clk 0:00:14]}  Be6 {[%clk 0:00:04]} 42. a5 {[%clk 0:00:13]}  Ra2 {[%clk 0:00:04]} 43. Bf1 {[%clk 0:00:13]}  Bd5 {[%clk 0:00:04]} 44. Ra6 {[%clk 0:00:11]}  Ke7 {[%clk 0:00:03]} 45. Ra7+ {[%clk 0:00:11]}  Kd6 {[%clk 0:00:04]} 46. Bd3 {[%clk 0:00:12]}  f5 {[%clk 0:00:03]} 47. Kf1 {[%clk 0:00:12]}  Ke5 {[%clk 0:00:04]} 48. Ra6 {[%clk 0:00:12]}  Kd4 {[%clk 0:00:03]} 49. Bb5 {[%clk 0:00:11]}  Rb2 {[%clk 0:00:04]} 50. Be2 {[%clk 0:00:09]}  Rxe2 {[%clk 0:00:04]} 51. Rxg6 {[%clk 0:00:07]}  Ra2 {[%clk 0:00:03]} 52. Rg5 {[%clk 0:00:06]}  Rxa5 {[%clk 0:00:04]} 53. Rxh5 {[%clk 0:00:06]}  Bf3 {[%clk 0:00:04]} 54. Rg5 {[%clk 0:00:05]}  Ke3 {[%clk 0:00:04]} 0-1


[Site "https://www.chess.com"]